bitfinex-derivatives/quotes_ETHF0:USTF0_20250220
["timestamp","ask_amount","ask_price","bid_price","bid_amount"]
[1740035713433,3.21330338,2726.0,2725.5,0.73377]
[1740035713627,3.21330338,2726.0,2725.6,0.583]
[1740035713838,3.21330338,2726.0,2725.7,2.368]
[1740035714137,0.00550338,2726.0,2725.8,0.5708]
[1740035714938,0.00550338,2726.0,2725.8,1.3045]
[1740035715137,0.00550338,2726.0,2725.8,0.5708]
[1740035718142,0.00550338,2726.0,2725.8,1.3045]
[1740035719646,0.00550338,2726.0,2725.8,0.5708]
[1740035719942,0.00550338,2726.0,2725.9,0.73368]
[1740035720943,0.00550338,2726.0,2725.9,2.73368]
[1740035721945,0.00550338,2726.0,2725.9,43.53368]
[1740035722546,15.79781164,2726.4,2726.3,0.73358]
[1740035722744,15.79781164,2726.4,2726.3,8.30538]
[1740035723641,4.19993061,2726.4,2726.3,8.30538]
[1740035723942,3.31193061,2726.4,2726.3,8.30538]
[1740035724139,0.00550338,2726.6,2726.5,0.73352]
[1740035724540,0.00550338,2726.6,2726.5,41.53352]
[1740035725844,0.00550338,2726.6,2726.5,43.53352]
[1740035727147,17.23397634,2727.1,2726.9,0.7334]
[1740035727340,0.5585,2727.5,2727.0,7.3118]
[1740035728045,3.2078,2727.6,2727.0,7.3118]
[1740035728241,0.00550338,2727.5,2727.0,8.05067338]
[1740035728548,0.00550338,2727.5,2727.0,7.31730338]
[1740035728749,0.00550338,2727.5,2727.1,0.73336]
[1740035729139,0.00550338,2727.5,2727.0,7.31730338]
[1740035729647,0.00550338,2727.5,2727.2,2.73331]
[1740035730051,0.00550338,2727.5,2727.2,2.0]
[1740035730552,0.00550338,2727.5,2727.4,3.94108]
[1740035730745,0.00550338,2727.5,2727.4,6.31408]
[1740035732153,0.00550338,2727.5,2727.4,47.11408]
[1740035733844,0.00550338,2727.5,2727.4,46.3808]
[1740035734846,0.00550338,2727.5,2727.4,46.9302]
[1740035735650,0.00550338,2727.5,2727.4,46.9282]
[1740035735948,0.00550338,2727.5,2727.4,44.5572]
[1740035736147,0.00550338,2727.5,2727.1,3.2078]
[1740035736344,0.00550338,2727.5,2727.2,2.372]
[1740035736544,0.54140338,2727.5,2727.2,2.372]
[1740035737850,0.00550338,2727.5,2727.2,2.372]
[1740035738043,0.00550338,2727.5,2727.4,3.2078]
[1740035738245,0.00550338,2727.5,2727.3,0.73329]
[1740035738445,0.00550338,2727.5,2727.2,2.372]
[1740035738648,0.00550338,2727.5,2727.4,3.2078]
[1740035739853,0.00550338,2727.5,2727.4,4.3331]
[1740035740749,0.00550338,2727.5,2727.4,3.2078]
[1740035741253,0.73875338,2727.5,2727.4,2.369]
[1740035741456,0.00550338,2727.5,2727.1,44.5522]
[1740035741751,0.73877338,2727.5,2727.3,2.368]
[1740035741958,0.00550338,2727.5,2727.3,2.368]
[1740035742254,0.73328,2727.4,2727.3,2.368]
[1740035743656,0.73332,2727.3,2727.1,44.0078]
[1740035743860,0.73332,2727.3,2727.2,2.367]
[1740035744356,0.73877338,2727.5,2727.2,2.9351]
[1740035744657,0.73877338,2727.5,2727.2,3.49]
[1740035745557,0.00550338,2727.5,2727.2,3.49]
[1740035746254,0.73329,2727.4,2727.2,3.49]
[1740035746558,0.00550338,2727.5,2727.2,2.367]
[1740035746757,0.73332,2727.3,2727.2,2.367]
[1740035748553,0.73329,2727.4,2727.2,2.367]
[1740035748957,0.00550338,2727.5,2727.3,0.5516]
[1740035749757,0.00550338,2727.5,2727.3,1.28489]
[1740035750157,0.00550338,2727.5,2727.3,0.5516]
[1740035750359,0.00550338,2727.5,2727.4,0.5363]
[1740035757064,0.00550338,2727.5,2727.4,3.7441]
[1740035757465,0.00550338,2727.5,2727.4,4.47738]
[1740035758264,0.00550338,2727.5,2727.4,3.7441]
[1740035758760,0.00550338,2727.5,2727.4,44.5441]
[1740035759566,0.00550338,2727.5,2727.4,45.27738]
[1740035761068,0.00550338,2727.5,2727.4,44.5441]
[1740035762969,0.00550338,2727.5,2727.4,47.27738]
[1740035764264,0.00550338,2727.5,2727.4,46.5441]
[1740035766474,0.00550338,2727.5,2727.4,47.27738]
[1740035767066,0.00550338,2727.5,2727.4,46.5441]
[1740035767676,0.00550338,2727.5,2727.4,47.27738]
[1740035770078,0.00550338,2727.5,2727.4,46.5441]
[1740035771276,0.00550338,2727.5,2727.4,44.5441]
[1740035771476,0.00550338,2727.5,2727.4,41.3363]
[1740035772277,0.00550338,2727.5,2727.4,44.5441]
[1740035777781,0.00550338,2727.5,2727.4,46.8921]
[1740035782581,0.00550338,2727.5,2727.4,47.62538]
[1740035782879,0.00550338,2727.5,2727.4,49.62538]
[1740035787483,0.00550338,2727.5,2727.4,48.8921]
[1740035787786,0.00550338,2727.5,2727.4,46.8891]
[1740035787985,0.00550338,2727.5,2727.4,47.62238]
[1740035788885,0.00550338,2727.5,2727.4,46.8891]
[1740035789083,0.00550338,2727.5,2727.4,47.62238]
[1740035789277,0.00550338,2727.5,2727.4,46.8891]
[1740035790689,0.00550338,2727.5,2727.4,47.62238]
[1740035790987,0.00550338,2727.5,2727.4,46.8891]
[1740035793086,0.00550338,2727.5,2727.4,47.62238]
[1740035793985,0.00550338,2727.5,2727.4,46.8891]
[1740035794186,0.00550338,2727.5,2727.4,47.62238]
[1740035799090,0.00550338,2727.5,2727.4,49.62238]
[1740035801498,0.00550338,2727.5,2727.4,47.62238]
[1740035806903,0.00550338,2727.5,2727.4,49.62238]
[1740035819099,0.73875338,2727.5,2727.4,42.8]
[1740035819299,0.00550338,2727.5,2727.2,3.2078]
[1740035819504,1.1473,2727.4,2727.3,2.388]
[1740035819711,1.1473,2727.4,2727.3,2.9292]
[1740035820411,0.73333,2727.3,2727.0,44.01330338]
[1740035820604,0.73333,2727.3,2727.1,2.392]
[1740035820605,1.28363,2727.3,2727.1,2.392]
[1740035820914,0.5503,2727.3,2727.1,2.392]
[1740035821508,0.5503,2727.3,2727.0,44.01330338]
[1740035821715,1.28361,2727.3,2727.1,2.392]
[1740035822910,0.5503,2727.3,2727.1,2.392]
[1740035823305,1.28362,2727.3,2727.1,2.392]
[1740035824215,0.5503,2727.3,2727.1,2.392]
[1740035824511,0.73333,2727.2,2727.1,2.392]
[1740035824715,0.73333,2727.2,2727.1,2.39]
[1740035825808,0.73336,2727.1,2727.0,0.00550338]
[1740035826011,1.32446,2727.1,2727.0,0.00550338]
[1740035826204,10.53226,2727.1,2727.0,0.00550338]
[1740035826513,0.73343,2726.9,2726.7,22.721]
[1740035826713,0.5449,2726.8,2726.7,22.721]
[1740035826907,0.5449,2726.8,2726.7,2.392]
[1740035828818,1.27834,2726.8,2726.7,2.392]
[1740035829114,1.27834,2726.8,2726.5,40.80550338]
[1740035829115,0.73349,2726.6,2726.5,0.00550338]
[1740035829512,6.0,2726.6,2726.2,2.391]
[1740035829815,3.94138,2726.3,2726.2,2.391]
[1740035830109,0.73364,2726.1,2725.9,40.8]
[1740035830317,1.30606,2726.0,2725.9,40.8]
[1740035830516,0.5724,2726.0,2725.9,43.192]
[1740035830915,0.5724,2726.0,2725.9,2.392]
[1740035831309,1.30607,2726.0,2725.9,2.391]
[1740035833415,0.73371,2725.8,2725.7,0.00550338]
[1740035833609,0.73371,2725.8,2725.3,2.391]
[1740035833610,0.73381,2725.5,2725.3,40.8]
[1740035833809,1.32302,2725.4,2725.3,40.8]
[1740035834007,0.5892,2725.4,2725.3,40.8]
[1740035834409,6.5892,2725.4,2724.8,2.0]
[1740035834615,3.2078,2725.3,2724.7,3.2078]
[1740035834814,1.88623338,2725.4,2724.8,0.73947338]
[1740035835019,1.15240338,2725.4,2724.8,0.00550338]
[1740035835218,0.73389,2725.2,2724.8,2.41750338]
[1740035835419,0.73386,2725.3,2724.8,2.41750338]
[1740035835615,1.15240338,2725.4,2724.8,2.41750338]
[1740035835817,0.73387,2725.3,2724.8,2.41750338]
[1740035836011,0.73387,2725.3,2724.8,0.00550338]
[1740035836209,0.73387,2725.3,2724.8,2.41650338]
[1740035836413,3.2078,2725.3,2724.8,2.41650338]
[1740035836613,3.94166,2725.3,2724.8,2.41650338]
[1740035836814,0.5828,2725.2,2724.8,2.41650338]
[1740035837616,0.5828,2725.2,2725.0,3.2078]
[1740035838018,0.5828,2725.2,2725.0,3.94171]
[1740035838318,0.59470338,2725.4,2725.0,3.2078]
[1740035838319,0.00550338,2725.4,2725.0,3.2078]
[1740035838621,0.00550338,2725.4,2725.3,3.94164]
[1740035838820,0.00550338,2725.4,2725.3,3.2078]
[1740035839926,0.00550338,2725.4,2725.3,2.418]
[1740035841124,0.00550338,2725.4,2725.3,2.417]
[1740035841429,0.00550338,2725.4,2725.1,0.5492]
[1740035841727,0.00550338,2725.4,2725.3,2.416]
[1740035842629,0.00550338,2725.4,2725.3,43.216]
[1740035843325,0.73932338,2725.4,2725.3,40.8]
[1740035843526,0.00550338,2725.4,2725.0,5.39]
[1740035843727,0.73933338,2725.4,2725.0,5.39]
[1740035844026,0.73933338,2725.4,2725.0,46.19]
[1740035844420,0.73933338,2725.4,2725.0,5.39]
[1740035845331,0.73933338,2725.4,2725.0,2.415]
[1740035845622,0.00550338,2725.4,2725.0,2.415]
[1740035846022,0.00550338,2725.4,2725.1,0.73389]
[1740035846228,0.00550338,2725.4,2725.0,2.415]
[1740035846426,0.00550338,2725.4,2724.9,44.5442]
[1740035846633,0.00550338,2725.4,2725.0,2.415]
[1740035846927,0.73388,2725.2,2725.0,2.415]
[1740035847126,0.00550338,2725.4,2725.0,2.415]
[1740035847326,0.7339,2725.1,2725.0,2.415]
[1740035848329,0.00550338,2725.4,2725.1,0.73389]
[1740035848826,0.00550338,2725.4,2725.0,3.14891]
[1740035850221,0.00550338,2725.4,2725.3,3.2078]
[1740035852031,0.00550338,2725.4,2725.3,3.7907]
[1740035858633,0.00550338,2725.4,2725.3,4.3573]
[1740035862641,0.73932338,2725.4,2725.3,3.2078]
[1740035862934,0.73932338,2725.4,2725.3,5.6098]
[1740035862935,0.00550338,2725.4,2725.3,5.6098]
[1740035864329,0.00550338,2725.4,2725.3,3.2078]
[1740035864531,0.73932338,2725.4,2725.3,3.2078]
[1740035866437,0.00550338,2725.4,2724.9,3.7442]
[1740035866738,0.5349,2725.3,2724.9,3.7442]
[1740035866939,0.73387,2725.2,2725.0,2.4]
[1740035867136,1.30227,2725.2,2725.0,2.4]
[1740035867839,0.73392,2725.1,2724.9,5.6068]
[1740035868041,0.5351,2725.0,2724.9,5.6068]
[1740035868834,1.26903,2725.0,2724.9,5.6068]
[1740035869743,0.5351,2725.0,2724.9,5.6068]
[1740035869936,1.26903,2725.0,2724.9,5.6068]
[1740035870641,1.26903,2725.0,2724.9,2.399]
[1740035873337,0.5351,2725.0,2724.9,2.399]
[1740035873538,1.30228,2725.2,2724.9,2.399]
[1740035873836,1.30228,2725.2,2725.0,0.5522]
[1740035874239,0.5684,2725.2,2724.9,2.399]
[1740035874536,3.2078,2725.1,2724.8,0.00550338]
[1740035875246,0.73394,2725.0,2724.8,0.00550338]
[1740035875746,3.2078,2725.1,2724.8,0.00550338]
[1740035875941,3.94171,2725.1,2724.8,0.00550338]
[1740035876241,3.94171,2725.1,2724.8,0.73946338]
[1740035876242,3.2078,2725.1,2724.8,0.73946338]
[1740035876443,3.2078,2725.1,2724.8,0.00550338]
[1740035876643,3.94171,2725.1,2724.8,0.00550338]
[1740035877243,0.5684,2725.2,2724.8,0.00550338]
[1740035877439,0.7339,2725.1,2724.8,0.00550338]
[1740035879051,0.73393,2725.0,2724.8,0.00550338]
[1740035879448,0.5684,2725.2,2724.8,0.00550338]
[1740035880050,0.73392,2725.1,2724.8,0.00550338]
[1740035880250,0.73395,2725.0,2724.8,0.00550338]
[1740035880568,0.5684,2725.2,2724.8,0.00550338]
[1740035880750,0.73395,2724.9,2724.8,0.00550338]
[1740035881049,3.2078,2725.1,2724.2,3.2078]
[1740035881244,4.335,2724.8,2724.3,22.74]
[1740035881440,1.28663,2724.7,2724.3,22.74]
[1740035881645,0.73404,2724.6,2724.3,22.74]
[1740035882053,0.5526,2724.7,2724.3,22.74]
[1740035882255,0.73408,2724.5,2724.3,22.74]
[1740035882444,0.5526,2724.7,2724.3,22.74]
[1740035882644,0.73408,2724.5,2724.3,22.74]
[1740035883349,0.73403,2724.6,2724.3,22.74]
[1740035884151,0.5526,2724.7,2724.3,22.74]
[1740035884353,0.5526,2724.7,2724.2,40.8]
[1740035884553,3.2078,2724.5,2724.2,40.8]
[1740035884744,0.73411,2724.3,2724.2,40.8]
[1740035885051,0.73411,2724.3,2724.0,1.7325]
[1740035885353,0.5415,2724.2,2724.1,40.8]
[1740035885652,0.7341,2724.4,2724.1,40.8]
[1740035885960,3.94187,2724.5,2724.1,40.8]
[1740035886252,0.73409,2724.4,2724.1,40.8]
[1740035887547,0.5415,2724.6,2724.1,40.8]
[1740035887745,0.7341,2724.4,2724.1,40.8]
[1740035888748,0.73412,2724.3,2724.1,40.8]
[1740035888943,0.7341,2724.4,2724.1,40.8]
[1740035889449,0.73408,2724.5,2724.1,40.8]
[1740035889650,1.27554,2724.6,2724.1,44.74195]
[1740035889947,3.2078,2724.8,2724.1,44.0078]
[1740035890342,0.73409,2724.4,2724.1,44.0078]
[1740035891047,3.2078,2724.8,2724.1,44.0078]
[1740035891246,0.73408,2724.5,2724.1,44.0078]
[1740035893151,0.7341,2724.4,2724.1,44.0078]
[1740035893753,0.73413,2724.3,2724.1,44.0078]
[1740035893956,0.73413,2724.3,2724.1,3.2078]
[1740035894354,0.73413,2724.3,2724.1,44.0078]
[1740035894755,3.2078,2724.8,2724.1,44.0078]
[1740035894960,0.73414,2724.3,2724.1,44.0078]
[1740035895153,5.04281,2724.8,2724.1,3.2078]
[1740035895353,0.73413,2724.3,2724.1,3.7967]
[1740035895564,0.73413,2724.3,2724.1,44.5967]
[1740035895954,3.2078,2724.8,2724.1,44.5967]
[1740035896459,3.2078,2724.8,2724.1,45.33086]
[1740035896657,0.73407,2724.5,2724.1,44.5967]
[1740035897161,3.2078,2724.8,2724.1,44.5967]
[1740035897364,0.7341,2724.4,2724.1,44.5967]
[1740035897557,0.73406,2724.5,2724.1,45.33086]
[1740035897862,0.73411,2724.4,2724.1,44.5967]
[1740035898263,3.2078,2724.8,2724.1,44.5967]
[1740035898955,0.73411,2724.4,2724.2,2.408]
[1740035899265,3.2078,2724.8,2724.2,2.408]
[1740035899457,0.7341,2724.4,2724.2,2.408]
[1740035900063,3.2078,2724.8,2724.2,2.408]
[1740035900563,0.73411,2724.3,2724.2,2.408]
[1740035901163,0.73414,2724.3,2724.2,2.406]
[1740035902364,0.73414,2724.2,2724.1,44.5967]
[1740035902660,0.73414,2724.2,2724.1,47.0007]
[1740035903161,0.73414,2724.2,2724.1,43.7929]
[1740035903756,0.73414,2724.2,2724.1,43.204]
[1740035908763,0.73417,2724.1,2724.0,2.9911]
[1740035908968,0.73417,2724.1,2724.0,0.5911]
[1740035909165,0.73417,2724.1,2724.0,41.3911]
[1740035909366,0.73417,2724.1,2724.0,0.5911]
[1740035909763,1.30127,2724.1,2724.0,0.5911]
[1740035910166,0.5671,2724.1,2723.9,40.8]
[1740035910465,0.73419,2724.0,2723.9,40.8]
[1740035913567,3.69419,2724.0,2723.9,40.8]
[1740035915065,2.96,2724.0,2723.9,40.8]
[1740035915963,3.69419,2724.0,2723.9,40.8]
[1740035919585,0.73419,2724.0,2723.9,40.8]
[1740035921973,15.73514897,2724.4,2723.9,40.8]
[1740035922180,0.73419,2724.1,2723.9,40.8]
[1740035922482,0.73417,2724.1,2724.0,0.5521]
[1740035922878,15.73514897,2724.4,2724.0,0.5521]
[1740035923083,0.73416,2724.2,2724.0,0.5521]
[1740035923280,15.73514897,2724.4,2724.0,0.5521]
[1740035923484,0.73417,2724.1,2724.0,0.5521]
[1740035926978,0.73415,2724.2,2724.0,0.5521]
[1740035927283,0.73417,2724.1,2724.0,0.5521]
[1740035927982,0.73415,2724.2,2724.0,0.5521]
[1740035928180,15.73514897,2724.4,2724.0,0.5521]
[1740035928389,0.73415,2724.2,2724.0,0.5521]
[1740035929886,15.73514897,2724.4,2724.0,0.5521]
[1740035930087,15.73514897,2724.4,2724.1,2.385]
[1740035930391,16.46923897,2724.4,2724.1,2.385]
[1740035931786,15.73514897,2724.4,2724.1,3.11917]
[1740035932188,15.73514897,2724.4,2724.1,2.385]
[1740035932783,15.73514897,2724.4,2724.2,0.5355]
[1740035933384,15.73514897,2724.4,2724.2,1.26963]
[1740035933777,15.73514897,2724.4,2724.2,0.5355]
[1740035934783,3.2078,2724.5,2724.2,0.5355]
[1740035935491,15.73514897,2724.6,2724.2,0.5355]
[1740035935681,16.46918897,2724.6,2724.2,0.5355]
[1740035936089,15.73514897,2724.6,2724.2,0.5355]
[1740035936584,16.46918897,2724.6,2724.2,0.5355]
[1740035936888,16.46918897,2724.6,2724.3,0.5844]
[1740035937189,16.46918897,2724.6,2724.4,0.5768]
[1740035939386,15.73514897,2724.6,2724.4,0.5768]
[1740035939684,15.73514897,2724.6,2724.5,2.378]
[1740035940688,15.73514897,2724.6,2724.5,3.11206]
[1740035942290,16.46905897,2725.1,2724.5,2.378]
[1740035942490,16.46905897,2725.1,2724.6,1.27192]
[1740035942793,16.46905897,2725.1,2724.7,0.535]
[1740035943094,16.46905897,2725.1,2724.8,0.5364]
[1740035943686,15.73514897,2725.1,2724.8,0.5364]
[1740035944087,15.73514897,2725.1,2724.9,2.379]
[1740035944593,15.73514897,2725.1,2725.0,0.5461]
[1740035945883,15.73514897,2725.1,2725.0,1.28003]
[1740035946194,15.73514897,2725.1,2725.0,0.5461]
[1740035949990,15.73514897,2725.1,2725.0,41.3461]
[1740035950190,15.73514897,2725.1,2725.0,1.28003]
[1740035951000,15.73514897,2725.1,2725.0,0.5461]
[1740035952595,15.73514897,2725.1,2725.0,1.28003]
[1740035952789,15.73514897,2725.1,2725.0,0.5461]
[1740035953900,15.73514897,2725.1,2725.0,2.9171]
[1740035954991,15.73514897,2725.1,2725.0,3.65103]
[1740035955293,15.73514897,2725.1,2725.0,2.9171]
[1740035955900,15.73514897,2725.1,2725.0,3.65103]
[1740035956696,15.73514897,2725.1,2724.8,40.8]
[1740035956998,0.734,2724.8,2724.4,2.375]
[1740035957493,0.5551,2724.7,2724.4,2.375]
[1740035958001,0.5569,2724.6,2724.4,2.375]
[1740035958597,0.5569,2724.6,2724.5,0.5367]
[1740035959096,0.5569,2724.6,2724.5,2.9117]
[1740035959596,0.5569,2724.6,2724.5,2.375]
[1740035959800,1.86053,2724.6,2724.5,2.376]
[1740035961997,1.86053,2724.6,2724.3,44.0078]
[1740035962200,1.86053,2724.6,2724.4,2.375]
[1740035963705,1.1265,2724.6,2724.4,2.375]
[1740035964202,0.5569,2724.6,2724.4,2.375]
[1740035965594,3.2078,2725.0,2724.4,2.375]
[1740035965797,3.2078,2725.0,2724.5,0.73405]
[1740035965995,3.2078,2725.0,2724.6,1.1007]
[1740035966194,3.2078,2725.0,2724.6,1.6351]
[1740035967999,16.46906897,2725.1,2724.6,5.57692]
[1740035968195,15.73514897,2725.1,2724.7,0.734]
[1740035968403,15.73514897,2725.1,2724.8,2.377]
[1740035976910,0.73393,2725.0,2724.8,2.377]
[1740035977112,0.5356,2724.9,2724.8,2.377]
[1740035977413,1.1198,2724.9,2724.8,2.377]
[1740035978312,1.85375,2724.9,2724.8,2.37]
[1740035979815,1.1198,2724.9,2724.8,2.37]
[1740035981014,0.5356,2724.9,2724.8,2.37]
[1740035981214,16.46905897,2725.1,2724.8,2.37]
[1740035981414,16.46905897,2725.1,2724.8,2.9111]
[1740035983522,0.73394,2725.0,2724.8,2.9111]
[1740035984922,15.73514897,2725.1,2724.8,2.9111]
[1740035985424,16.46904897,2725.1,2724.8,2.9111]
[1740035985920,0.73393,2725.0,2724.8,2.9111]
[1740035986122,15.73514897,2725.1,2724.8,2.9111]
[1740035986322,16.46905897,2725.1,2724.8,2.9111]
[1740035986724,0.73393,2725.0,2724.8,2.9111]
[1740035987520,16.46905897,2725.1,2724.8,2.9111]
[1740035988025,0.73394,2725.0,2724.8,2.9111]
[1740035988523,16.46906897,2725.1,2724.8,2.9111]
[1740035988927,0.73394,2725.0,2724.8,2.9111]
[1740035989627,15.73514897,2725.1,2724.8,2.37]
[1740035989829,0.73394,2725.0,2724.8,2.37]
[1740035990927,0.73394,2725.0,2724.8,2.364]
[1740035991319,15.73514897,2725.1,2724.8,2.364]
[1740035991520,16.46906897,2725.1,2724.8,2.364]
[1740035992022,15.73514897,2725.1,2724.8,2.364]
[1740035992626,15.73514897,2725.1,2724.9,0.566]
[1740035993030,15.73514897,2725.1,2725.0,0.535]
[1740035994031,15.73514897,2725.1,2724.8,2.364]
[1740035994221,15.73514897,2725.1,2724.9,0.535]
[1740035995129,16.46905897,2725.1,2724.9,0.535]
[1740035995533,15.73514897,2725.1,2724.8,2.364]
[1740035995730,15.73514897,2725.1,2724.8,2.9369]
[1740035996227,0.73393,2725.0,2724.8,2.9369]
[1740035996531,15.73514897,2725.1,2724.8,3.67087]
[1740035998026,15.73514897,2725.1,2724.8,2.9369]
[1740036000436,16.46905897,2725.1,2724.8,2.9369]
[1740036001138,0.73395,2724.9,2724.8,2.364]
[1740036001337,0.73395,2724.9,2724.7,2.946]
[1740036001529,0.73395,2724.9,2724.6,3.2078]
[1740036001530,1.1228,2724.8,2724.6,3.2078]
[1740036001735,1.7046,2724.8,2724.4,2.365]
[1740036002047,0.73402,2724.7,2724.4,2.365]
[1740036002338,1.7046,2724.8,2724.4,2.365]
[1740036002635,0.73401,2724.7,2724.5,0.5438]
[1740036002835,1.7046,2724.8,2724.5,0.5438]
[1740036003035,1.7046,2724.8,2724.6,0.5605]
[1740036003228,0.5771,2724.8,2724.7,0.73401]
[1740036003431,0.5771,2724.8,2724.6,0.5605]
[1740036004833,2.96,2724.9,2724.8,0.73398]
[1740036005039,2.96,2724.9,2724.8,2.37]
[1740036006131,2.96,2724.9,2724.8,3.10398]
[1740036007044,2.96,2724.9,2724.8,2.37]
[1740036008041,3.69395,2724.9,2724.8,2.369]
[1740036008738,0.73395,2724.9,2724.7,2.37]
[1740036008940,1.1407,2724.8,2724.7,2.37]
[1740036009531,1.87468,2724.8,2724.7,2.37]
[1740036010439,1.87469,2724.8,2724.6,2.369]
[1740036010741,1.27751,2724.7,2724.6,2.369]
[1740036011238,0.5435,2724.7,2724.6,2.369]
[1740036012139,1.27751,2724.7,2724.6,2.369]
[1740036012442,0.73403,2724.6,2724.5,2.368]
[1740036013341,1.27752,2724.7,2724.5,2.368]
[1740036014940,0.73403,2724.6,2724.5,2.368]
[1740036015543,0.5435,2724.7,2724.5,2.368]
[1740036015841,0.5435,2724.7,2724.3,3.2078]
[1740036016033,0.73409,2724.4,2724.3,3.2078]
[1740036016643,0.73409,2724.4,2724.1,3.5235]
[1740036016644,3.7513,2724.7,2724.1,0.575]
[1740036016836,0.73414,2724.2,2724.1,0.575]
[1740036017740,1.7463,2724.3,2724.0,22.717]
[1740036017741,0.73417,2724.1,2724.0,22.717]
[1740036019748,0.73417,2724.1,2724.0,2.366]
[1740036025047,0.73419,2724.0,2723.9,2.9284]
[1740036029867,1.7463,2724.3,2723.9,2.9284]
[1740036030155,1.1561,2724.3,2723.9,2.9284]
[1740036030359,3.2078,2724.4,2724.0,0.5337]
[1740036030663,3.2078,2724.4,2724.1,0.5366]
[1740036031557,3.2078,2724.4,2724.1,1.27077]
[1740036031748,0.73406,2724.5,2724.1,1.27077]
[1740036031949,3.2078,2724.7,2724.1,0.5366]
[1740036032354,3.94181,2724.7,2724.2,0.73413]
[1740036032759,3.2078,2724.7,2724.3,2.9314]
[1740036032951,3.94181,2724.7,2724.3,2.9314]
[1740036033257,3.2078,2724.7,2724.3,2.9314]
[1740036033451,3.94182,2724.7,2724.3,2.9314]
[1740036033768,3.94181,2724.7,2724.3,2.9314]
[1740036034259,3.2078,2724.7,2724.3,2.9314]
[1740036034451,0.73407,2724.5,2724.3,2.9314]
[1740036035260,3.2078,2724.7,2724.3,2.9314]
[1740036035655,0.73407,2724.5,2724.3,2.9314]
[1740036035858,0.561,2724.6,2724.3,2.9314]
[1740036036046,0.73409,2724.4,2724.3,2.9314]
[1740036036357,0.73409,2724.4,2724.1,2.8946]
[1740036036558,0.561,2724.6,2724.1,3.4687]
[1740036036559,1.1272,2724.3,2724.1,3.4687]
[1740036036859,1.86132,2724.3,2724.1,3.4687]
[1740036038458,1.86132,2724.3,2724.1,1.1107]
[1740036040459,1.86133,2724.3,2724.1,1.1107]
[1740036042356,0.5656,2724.3,2724.1,1.1107]
[1740036042562,1.29972,2724.3,2724.1,1.1107]
[1740036042860,1.29971,2724.3,2724.1,1.1107]
[1740036043062,0.73411,2724.3,2724.1,1.1107]
[1740036043454,0.73412,2724.3,2724.1,1.1107]
[1740036043759,0.7341,2724.4,2724.1,1.1107]
[1740036043959,0.73409,2724.4,2724.1,1.1107]
[1740036044454,3.7685,2724.6,2724.1,1.1107]
[1740036044758,0.73411,2724.4,2724.1,1.1107]
[1740036044956,0.73412,2724.3,2724.1,1.1107]
[1740036045958,0.73411,2724.4,2724.1,1.1107]
[1740036048661,0.73411,2724.4,2724.1,3.4627]
[1740036049061,3.7685,2724.6,2724.1,3.4627]
[1740036049362,0.73414,2724.3,2724.1,3.4627]
[1740036050258,0.7341,2724.4,2724.1,3.4627]
[1740036050866,3.7685,2724.6,2724.1,3.4627]
[1740036051069,0.7341,2724.4,2724.1,3.4627]
[1740036051566,3.7685,2724.6,2724.1,3.4627]
[1740036051759,0.73411,2724.4,2724.1,3.4627]
[1740036052159,0.5917,2724.3,2724.1,3.4627]
[1740036052960,0.73407,2724.5,2724.1,4.19686]
[1740036054168,3.7685,2724.6,2724.1,3.4627]
[1740036054359,3.7685,2724.6,2724.2,0.73413]
[1740036054959,3.7685,2724.6,2724.3,0.7341]
[1740036055467,4.50255,2724.6,2724.4,0.5405]
[1740036055670,4.50255,2724.6,2724.5,1.1447]
[1740036056561,3.7685,2724.6,2724.5,1.1447]
[1740036056759,3.2078,2724.6,2724.5,1.1447]
[1740036057164,3.2078,2724.6,2724.5,1.87876]
[1740036057963,3.2078,2724.6,2724.5,1.1447]
[1740036058162,3.2078,2724.6,2724.5,1.87876]
[1740036058566,3.2078,2724.6,2724.5,1.1447]
[1740036060172,3.2078,2724.6,2724.5,3.4967]
[1740036062974,15.73514897,2724.7,2724.5,4.23075]
[1740036063170,15.73514897,2724.7,2724.5,3.4967]
[1740036063470,0.73403,2724.6,2724.5,3.4967]
[1740036063774,0.73408,2724.5,2724.4,2.352]
[1740036064074,1.31978,2724.5,2724.4,2.352]
[1740036064879,0.5857,2724.5,2724.4,2.352]
[1740036065377,0.5709,2724.6,2724.4,2.352]
[1740036065978,0.5709,2724.6,2724.5,1.0936]
[1740036066476,15.73514897,2724.7,2724.5,1.0936]
[1740036066976,16.46915897,2724.7,2724.5,1.0936]
[1740036067173,0.73403,2724.6,2724.5,1.0936]
[1740036067370,15.73514897,2724.7,2724.5,1.82765]
[1740036068277,15.73514897,2724.7,2724.5,1.0936]
[1740036068576,15.73514897,2724.7,2724.6,1.29773]
[1740036070585,15.73514897,2724.7,2724.6,4.50553]
[1740036075588,15.73514897,2724.7,2724.6,2.352]
[1740036075883,15.73514897,2724.7,2724.6,2.9436]
[1740036076487,16.46915897,2724.7,2724.6,2.352]
[1740036076788,15.73514897,2724.7,2724.6,2.352]
[1740036083283,15.73514897,2724.7,2724.5,1.0936]
[1740036083483,15.73514897,2724.7,2724.5,3.4456]
[1740036083690,15.73514897,2724.7,2724.5,4.17966]
[1740036084185,15.73514897,2724.7,2724.5,3.4456]
[1740036084588,15.73514897,2724.7,2724.5,4.17965]
[1740036084779,15.73514897,2724.7,2724.6,0.73403]
[1740036085185,15.73514897,2724.7,2724.6,1.30613]
[1740036087195,15.73514897,2724.7,2724.6,0.5721]
[1740036088887,15.73514897,2724.7,2724.6,1.30613]